Workbook

Sheet Intro
A1: Multi, intro hold
E3: 1 | F3: 2 | G3: 3 | H3: 4 | I3: 5 | J3: 6 | K3: 7 | L3: 8 | M3: 9 | N3: 10 | O3: 11 | P3: 12 | Q3: 13 | R3: 14 | S3: 15 | T3: 16 | V3: Total | X3: Placering
A5: Henrik Caspersen - Niels Krøjgaard | E5: 14.45 | F5: 4.56 | G5: 12.66 | H5: 9.25 | I5: 19.34 | J5: 16.8 | K5: 8.06 | L5: 15.34 | M5: 7.69 | N5: 18.94 | O5: 15.94 | P5: 13.09 | Q5: 7.03 | R5: 16.85 | S5: 9.24 | T5: 13.3 | V5: =AVERAGE(E5:T5) -> 12.65875 | X5: 1
A6: H K Sørensen - Niels Henriksen | E6: 13.08 | F6: 5.78 | G6: 12.76 | H6: 13.74 | I6: 9.06 | J6: 12.57 | K6: 4.75 | L6: 9.41 | M6: 13.05 | N6: 9.49 | O6: 14.95 | P6: 9.48 | Q6: 6.92 | R6: 17.13 | S6: 12.21 | T6: 16.43 | V6: =AVERAGE(E6:T6) -> 11.300625 | X6: 2
A8: Morten Bilde - Søren Cilleborg Bilde | E8: 10.41 | F8: 10.8 | G8: 7.34 | H8: 6.26 | I8: 10.91 | J8: 12.97 | K8: 11.68 | L8: 8.01 | M8: 8.15 | N8: 10.6 | O8: 11.11 | P8: 12.49 | Q8: 2.67 | R8: 15.2 | S8: 12.14 | T8: 8.02 | V8: =AVERAGE(E8:T8) -> 9.9225 | X8: 8
A9: Ricardo Mirasola - Jan Kølbæk | E9: 14.07 | F9: 4.78 | G9: 7.24 | H9: 10.75 | I9: 3.64 | J9: 13.34 | K9: 3.67 | L9: 9.97 | M9: 14.15 | N9: 12.69 | O9: 9.88 | P9: 9.53 | Q9: 16.96 | R9: 13.81 | S9: 15.73 | T9: 11.1 | V9: =AVERAGE(E9:T9) -> 10.706875 | X9: 5
A11: Jørgen Cilleborg Hansen - Steen Schou | E11: 11.42 | F11: 10.57 | G11: 13.91 | H11: 16.8 | I11: 0.66 | J11: 7.43 | K11: 16.33 | L11: 11.99 | M11: 6.35 | N11: 8.58 | O11: 7.63 | P11: 2.96 | Q11: 2.75 | R11: 12.15 | S11: 15.37 | T11: 4.09 | V11: =AVERAGE(E11:T11) -> 9.311875 | X11: 12
A12: Asger Bruhn - Benny Marquart | E12: 2.07 | F12: 12.63 | G12: 8.21 | H12: 3.61 | I12: 10.94 | J12: 3.2 | K12: 8.32 | L12: 10.03 | M12: 17.54 | N12: 13.57 | O12: 15.53 | P12: 14.29 | Q12: 12.61 | R12: 10.14 | S12: 1.55 | T12: 9.04 | V12: =AVERAGE(E12:T12) -> 9.58 | X12: 9
A14: Marlene Henneberg - J.O Henneberg | E14: 13.31 | F14: 9.21 | G14: 12.62 | H14: 8.18 | I14: 10.74 | J14: 6.22 | K14: 15.25 | L14: 4.66 | M14: 5.85 | N14: 9.4 | O14: 12.37 | P14: 5.71 | Q14: 11.06 | R14: 10.58 | S14: 4.27 | T14: 11.98 | V14: =AVERAGE(E14:T14) -> 9.463125 | X14: 11
A15: Nikolaj Krefeld Hammelev - Lars Peter Damgaard | E15: 6.25 | F15: 6.47 | G15: 14.97 | H15: 17.75 | I15: 8.52 | J15: 11.5 | K15: 11.94 | L15: 10.59 | M15: 11.85 | N15: 7.31 | O15: 4.47 | P15: 17.04 | Q15: 6.52 | R15: 10.92 | S15: 7.86 | T15: 8.9 | V15: =AVERAGE(E15:T15) -> 10.17875 | X15: 6
A17: Martin Klausen - Palle Jensen | E17: 6.69 | F17: 13.53 | G17: 7.28 | H17: 7.69 | I17: 11.61 | J17: 5.72 | K17: 5.04 | L17: 3.02 | M17: 6.95 | N17: 1.06 | O17: 10.12 | P17: 7.51 | Q17: 17.25 | R17: 9.86 | S17: 6.31 | T17: 4.75 | V17: =AVERAGE(E17:T17) -> 7.774375 | X17: 16
A18: Emil Jepsen - Peter Jepsen | E18: 13.75 | F18: 10.79 | G18: 10.73 | H18: 6.82 | I18: 6.38 | J18: 14.86 | K18: 9.39 | L18: 14.94 | M18: 12.31 | N18: 10.51 | O18: 8.89 | P18: 10.47 | Q18: 7.39 | R18: 7.85 | S18: 13.58 | T18: 3.5 | V18: =AVERAGE(E18:T18) -> 10.135 | X18: 7
A20: Jens Kofoed - Emil Buus Thomsen | E20: 17.93 | F20: 9.43 | G20: 7.38 | H20: 2.25 | I20: 8.39 | J20: 5.14 | K20: 13.93 | L20: 7.48 | M20: 7.81 | N20: 7.12 | O20: 4.06 | P20: 10.52 | Q20: 17.33 | R20: 6.19 | S20: 6.42 | T20: 15.25 | V20: =AVERAGE(E20:T20) -> 9.164375 | X20: 13
A21: Kresten Roland Johansen - Troels Buus Thomsen | E21: 8.58 | F21: 7.37 | G21: 5.03 | H21: 11.82 | I21: 13.62 | J21: 14.28 | K21: 14.28 | L21: 3.46 | M21: 7.99 | N21: 9.5 | O21: 5.05 | P21: 6.91 | Q21: 3.04 | R21: 4.8 | S21: 13.69 | T21: 16.5 | V21: =AVERAGE(E21:T21) -> 9.12 | X21: 14
A23: Camilla Bo Krefeld - Johan Hammelev | E23: 9.59 | F23: 15.22 | G23: 6.09 | H23: 16.39 | I23: 11.48 | J23: 13.78 | K23: 10.61 | L23: 16.98 | M23: 12.19 | N23: 10.5 | O23: 6.1 | P23: 14.83 | Q23: 13.08 | R23: 3.15 | S23: 10.76 | T23: 3.57 | V23: =AVERAGE(E23:T23) -> 10.895 | X23: 4
A24: Lida Hulgaard - Øjvind Hulgaard | E24: 5.93 | F24: 9.2 | G24: 11.79 | H24: 3.2 | I24: 9.26 | J24: 8.5 | K24: 14.96 | L24: 5.06 | M24: 12.01 | N24: 12.88 | O24: 11.79 | P24: 10.05 | Q24: 12.97 | R24: 2.87 | S24: 7.79 | T24: 6.7 | V24: =AVERAGE(E24:T24) -> 9.06 | X24: 15
A26: Jesper Bechsgaard - Anders Handberg Sørensen | E26: 5.55 | F26: 14.22 | G26: 12.72 | H26: 13.18 | I26: 9.09 | J26: 6.66 | K26: 5.72 | L26: 12.52 | M26: 13.65 | N26: 6.43 | O26: 8.21 | P26: 5.17 | Q26: 13.48 | R26: 9.42 | S26: 4.63 | T26: 10.96 | V26: =AVERAGE(E26:T26) -> 9.475625 | X26: 10
A27: Jan Pedersen - Nils Mønsted | E27: 6.92 | F27: 15.44 | G27: 9.27 | H27: 12.31 | I27: 16.36 | J27: 7.03 | K27: 6.07 | L27: 16.54 | M27: 2.46 | N27: 11.42 | O27: 13.9 | P27: 9.95 | Q27: 8.94 | R27: 9.08 | S27: 18.45 | T27: 15.91 | V27: =AVERAGE(E27:T27) -> 11.253125 | X27: 3
A44: Øjvind Hulgaard - Jesper Gad
A45: Niels Krøjgaard - Henrik Caspersen - H C Graversen

Sheet RR1
A1: Multi, RR1
E3: 1 | F3: 2 | G3: 3 | H3: 4 | I3: 5 | J3: 6 | K3: 7 | L3: 8 | M3: 9 | N3: 10 | O3: 11 | P3: 12 | Q3: 13 | R3: 14 | T3: Total | U3: Placering
A5: Jan Pedersen - Nils Mønsted | E5: 10.11 | F5: 11.49 | G5: 12.35 | H5: 14.78 | I5: 10.24 | J5: 16.22 | K5: 4.12 | L5: 9.81 | M5: 9.34 | N5: 8.69 | O5: 3.34 | P5: 7.77 | Q5: 12.91 | R5: 13.04 | T5: =AVERAGE(E5:R5) -> 10.30071429 | U5: 10
A6: Camilla Bo Krefeld - Johan Hammelev | E6: 12.94 | F6: 11.69 | G6: 16.72 | H6: 8.37 | I6: 9.98 | J6: 17.96 | K6: 5.36 | L6: 4.85 | M6: 12.16 | N6: 16.25 | O6: 9.53 | P6: 7.44 | Q6: 7.97 | R6: 13.83 | T6: =AVERAGE(E6:R6) -> 11.075 | U6: 4
A8: Asger Bruhn - Benny Marquart | E8: 13.47 | F8: 12.26 | G8: 3.28 | H8: 5.22 | I8: 6.93 | J8: 10.78 | K8: 5.61 | L8: 13.93 | M8: 9.67 | N8: 8.04 | O8: 11.94 | P8: 12.01 | Q8: 0.89 | R8: 8.71 | T8: =AVERAGE(E8:R8) -> 8.767142857 | U8: 13
A9: Martin Klausen - Palle Jensen | E9: 5.08 | F9: 2.35 | G9: 7.65 | H9: 11.63 | I9: 4.06 | J9: 10.04 | K9: 6.32 | L9: 4.1 | M9: 14.26 | N9: 6.24 | O9: 3.71 | P9: 7.48 | Q9: 6.18 | R9: 5.89 | T9: =AVERAGE(E9:R9) -> 6.853846154 | U9: 16
A11: Morten Bilde - Søren Cilleborg Bilde | E11: 16.81 | F11: 12.75 | G11: 14.33 | H11: 11.72 | I11: 9.76 | J11: 2.04 | K11: 14.38 | L11: 15.9 | M11: 12.56 | N11: 4.41 | O11: 10.94 | P11: 12.88 | Q11: 11.82 | R11: 7.7 | T11: =AVERAGE(E11:R11) -> 11.28571429 | U11: 3
A12: Emil Jepsen - Peter Jepsen | E12: 10.68 | F12: 8.85 | G12: 7.87 | H12: 12.83 | I12: 10.02 | J12: 3.78 | K12: 13.68 | L12: 6.07 | M12: 4.22 | N12: 12.72 | O12: 17.76 | P12: 15.58 | Q12: 11.3 | R12: 14.95 | T12: =AVERAGE(E12:R12) -> 10.73642857 | U12: 7
A14: Ricardo Mirasola - Jan Kølbæk | E14: 13.87 | F14: 7.65 | G14: 6.13 | H14: 8.56 | I14: 13.87 | J14: 15.4 | K14: 14.64 | L14: 10.19 | M14: 10.33 | N14: 13.76 | O14: 9.06 | P14: 4.42 | Q14: 11.58 | R14: 15.26 | T14: =AVERAGE(E14:R14) -> 11.05142857 | U14: 5
A15: Marlene Henneberg - J.O Henneberg | E15: 8.77 | F15: 1.44 | G15: 11.38 | H15: 18.41 | I15: 15.66 | J15: 14.98 | K15: 15.88 | L15: 15.15 | M15: 5.74 | N15: 11.96 | O15: 2.24 | P15: 7.12 | Q15: 11.41 | R15: 10.05 | T15: =AVERAGE(E15:R15) -> 10.72785714 | U15: 8
A17: Nikolaj Krefeld Hammelev - Lars Peter Damgaard | E17: 11.23 | F17: 12.35 | G17: 16.27 | H17: 11.4 | I17: 6.84 | J17: 15.88 | K17: 15.29 | L17: 10 | M17: 7.84 | N17: 11.31 | O17: 8.06 | P17: 12.52 | Q17: 8.18 | R17: 5.05 | T17: =AVERAGE(E17:R17) -> 10.87285714 | U17: 6
A18: Kresten Roland Johansen - Troels Buus Thomsen | E18: 6.13 | F18: 18.56 | G18: 8.93 | H18: 9.07 | I18: 5.51 | J18: 12.97 | K18: 13.29 | L18: 8.08 | M18: 10.66 | N18: 3.75 | O18: 16.29 | P18: 7.99 | Q18: 8.7 | R18: 12.3 | T18: =AVERAGE(E18:R18) -> 10.15928571 | U18: 11
A20: Henrik Caspersen - Niels Krøjgaard | E20: 9.32 | F20: 7.25 | G20: 13.87 | H20: 1.59 | I20: 13.16 | J20: 7.03 | K20: 13.41 | L20: 12.01 | M20: 16.5 | N20: 16.22 | O20: 10.47 | P20: 12.23 | Q20: 19.11 | R20: 14.11 | T20: =AVERAGE(E20:R20) -> 11.87714286 | U20: 1
A21: Jens Kofoed - Emil Buus Thomsen | E21: 3.19 | F21: 11.15 | G21: 8.62 | H21: 11.44 | I21: 14.49 | J21: 4.12 | K21: 11.95 | L21: 5.22 | M21: 15.56 | N21: 18.77 | O21: 16.66 | P21: 12.56 | Q21: 13.82 | R21: 11.29 | T21: =AVERAGE(E21:R21) -> 11.34571429 | U21: 2
A23: Lida Hulgaard - Øjvind Hulgaard | E23: 14.92 | F23: 7.74 | G23: 12.13 | H23: 8.28 | I23: 6.13 | J23: 5.02 | K23: 6.71 | L23: 10 | M23: 3.5 | N23: 1.23 | O23: 9.62 | P23: 7.62 | Q23: 7.09 | R23: 6.17 | T23: =AVERAGE(E23:R23) -> 7.582857143 | U23: 14
A24: Jesper Bechsgaard - Anders Handberg Sørensen | E24: 6.53 | F24: 17.65 | G24: 5.67 | H24: 7.17 | I24: 4.34 | J24: 4.6 | K24: 4.71 | L24: 11.92 | M24: 4.44 | N24: 3.78 | O24: 4.83 | P24: 5.46 | Q24: 12.03 | R24: 6.96 | T24: =AVERAGE(E24:R24) -> 7.149285714 | U24: 15
A26: Jørgen Cilleborg Hansen - Steen Schou | E26: 9.89 | F26: 8.31 | G26: 3.73 | H26: 10.93 | I26: 13.07 | J26: 9.96 | K26: 6.59 | L26: 14.78 | M26: 15.78 | N26: 15.59 | O26: 10.38 | P26: 14.54 | Q26: 8.59 | R26: 4.74 | T26: =AVERAGE(E26:R26) -> 10.49142857 | U26: 9
A27: H K Sørensen - Niels Henriksen | E27: 7.06 | F27: 8.51 | G27: 11.07 | H27: 8.6 | I27: 15.94 | J27: 9.22 | K27: 8.05 | L27: 7.99 | M27: 7.44 | N27: 7.28 | O27: 15.17 | P27: 12.38 | Q27: 8.42 | R27: 9.95 | T27: =AVERAGE(E27:R27) -> 9.791428571 | U27: 12

Sheet Imp Par
A1: IMP Par
B4: 1 | C4: 2 | D4: 3 | E4: 4 | F4: 5 | I4: Placering
A5: Jesper Bechsgaard - Anders Handberg Sørensen | B5: 17 | C5: 56.1 | D5: 7.9 | E5: 27 | F5: -4 | H5: =SUM(B5:F5) -> 104 | I5: 1
A6: Asger Bruhn - Benny Marquart | B6: 27 | C6: 56.4 | D6: -11.3 | E6: -5.1 | F6: 5.9 | H6: 72.9 | I6: 2
A7: Henrik Caspersen - Niels Krøjgaard | B7: -9.7 | C7: 13.9 | D7: 5.5 | E7: 53.7 | F7: 8.7 | H7: 72.1 | I7: 3
A8: Marlene Henneberg - J.O Henneberg | B8: 10.3 | C8: 12.1 | D8: 21.9 | E8: 19.6 | F8: 2.9 | H8: 66.8 | I8: 4
A9: Jens Kofoed - Emil Buus Thomsen | B9: 15.1 | C9: 6.6 | D9: 15.9 | E9: 2.7 | F9: 18.6 | H9: 58.9 | I9: 5
A10: Emil Jepsen - Peter Jepsen | B10: 13.3 | C10: -56.6 | D10: 21.9 | E10: 68 | F10: 5 | H10: 51.6 | I10: 6
A11: Jørgen Cilleborg Hansen - Steen Schou | B11: 29.6 | C11: 30.1 | D11: 23 | E11: -45 | F11: 6.9 | H11: 44.6 | I11: 7
A12: Camilla Bo Krefeld - Johan Hammelev | B12: 20.9 | C12: 37.3 | D12: 1.1 | E12: -27.2 | F12: -3.9 | H12: 28.2 | I12: 8
A13: Ricardo Mirasola - Jan Kølbæk | B13: 40.1 | C13: -8.3 | D13: 23.9 | E13: -22 | F13: -19.7 | H13: 14 | I13: 9
A14: Jan Pedersen - Nils Mønsted | B14: -22.1 | C14: -9 | D14: -14.3 | E14: 20.3 | F14: 22.7 | H14: -2.4 | I14: 10
A15: H K Sørensen - Niels Henriksen | B15: -3.3 | C15: 28.6 | D15: -7.9 | E15: 7.2 | F15: -30.4 | H15: -5.8 | I15: 11
A16: Kresten Roland Johansen - Troels Buus Thomsen | B16: -22.1 | C16: -5.4 | D16: 20.1 | E16: -25.9 | F16: 0.4 | H16: -32.9 | I16: 12
A17: Lida Hulgaard - Øjvind Hulgaard | B17: -2.9 | C17: -27.8 | D17: 3.7 | E17: -38.3 | F17: 11 | H17: -54.3 | I17: 13
A18: Nikolaj Krefeld Hammelev - Lars Peter Damgaard | B18: -48.9 | C18: -37.7 | D18: -80 | E18: 70.2 | F18: -0.3 | H18: -96.7 | I18: 14
A19: Morten Bilde - Søren Cilleborg Bilde | B19: -13.4 | C19: -52.3 | D19: -15.1 | E19: -30.2 | F19: -12.9 | H19: -123.9 | I19: 15
A20: Martin Klausen - Palle Jensen | B20: -50.9 | C20: -44 | D20: -16.3 | E20: -74.9 | F20: -10.9 | H20: -197 | I20: 16
B21: =SUM(B5:B20) -> 0 | C21: =SUM(C5:C20) -> -5.684341886e-14 | D21: 0 | E21: 0.1 | F21: 0 | H21: =SUM(H5:H20) -> 0.1

Sheet RR2
A1: Multi, RR2
E3: 1 | F3: 2 | G3: 3 | H3: 4 | I3: 5 | J3: 6 | K3: 7 | L3: 8 | M3: 9 | N3: 10 | O3: 11 | P3: 12 | Q3: 13 | R3: 14 | T3: Total | U3: Placering
A5: Jan Pedersen - Nils Mønsted | E5: 8.18 | F5: 12.41 | G5: 16.3 | H5: 15.34 | I5: 5.63 | J5: 8.91 | K5: 6.98 | L5: 6.86 | T5: =AVERAGE(E5:R5) -> 10.07625 | U5: 8
A6: Camilla Bo Krefeld - Johan Hammelev | E6: 9.68 | F6: 9.12 | G6: 12.61 | H6: 14.28 | I6: 7.13 | J6: 6.4 | K6: 13.39 | L6: 10.19 | T6: =AVERAGE(E6:R6) -> 10.35 | U6: 6
A8: Asger Bruhn - Benny Marquart | E8: 11.64 | F8: 11.09 | G8: 12.59 | H8: 3.7 | I8: 10.91 | J8: 7.42 | K8: 13.77 | L8: 11.87 | T8: =AVERAGE(E8:R8) -> 10.37375 | U8: 5
A9: Martin Klausen - Palle Jensen | E9: 7.97 | F9: 6.59 | G9: 9.08 | H9: 5.97 | I9: 4.77 | J9: 12.26 | K9: 10.22 | L9: 5.88 | T9: =AVERAGE(E9:R9) -> 7.8425 | U9: 16
A11: Morten Bilde - Søren Cilleborg Bilde | E11: 11.24 | F11: 5.79 | G11: 10.54 | H11: 4.53 | I11: 9.09 | J11: 7.74 | K11: 10.45 | L11: 16.15 | T11: =AVERAGE(E11:R11) -> 9.44125 | U11: 12
A12: Emil Jepsen - Peter Jepsen | E12: 14.78 | F12: 14.25 | G12: 13.06 | H12: 15.18 | I12: 15.23 | J12: 12.58 | K12: 4.71 | L12: 15.59 | T12: =AVERAGE(E12:R12) -> 13.1725 | U12: 1
A14: Ricardo Mirasola - Jan Kølbæk | E14: 12.03 | F14: 8.91 | G14: 9.46 | H14: 4.82 | I14: 13.17 | J14: 11.54 | K14: 6.61 | L14: 13.14 | T14: =AVERAGE(E14:R14) -> 9.96 | U14: 9
A15: Marlene Henneberg - J.O Henneberg | E15: 8.36 | F15: 13.41 | G15: 6.94 | H15: 15.47 | I15: 9.52 | J15: 0.52 | K15: 13.02 | L15: 9.81 | T15: =AVERAGE(E15:R15) -> 9.63125 | U15: 11
A17: Nikolaj Krefeld Hammelev - Lars Peter Damgaard | E17: 10.32 | F17: 7.59 | G17: 10.92 | H17: 16.3 | I17: 9.78 | J17: 10.09 | K17: 9.55 | L17: 4.41 | T17: =AVERAGE(E17:R17) -> 9.87 | U17: 10
A18: Kresten Roland Johansen - Troels Buus Thomsen | E18: 11.82 | F18: 10.88 | G18: 7.41 | H18: 14.03 | I18: 18.07 | J18: 6.42 | K18: 15.29 | L18: 3.85 | T18: =AVERAGE(E18:R18) -> 10.97125 | U18: 3
A20: Henrik Caspersen - Niels Krøjgaard | E20: 7.66 | F20: 8.32 | G20: 10.76 | H20: 7.53 | I20: 6.86 | J20: 19.48 | K20: 6.23 | L20: 14.12 | T20: =AVERAGE(E20:R20) -> 10.12 | U20: 7
A21: Jens Kofoed - Emil Buus Thomsen | E21: 6.03 | F21: 8.99 | G21: 6.08 | H21: 14.34 | I21: 10.48 | J21: 8.46 | K21: 9.78 | L21: 8.13 | T21: =AVERAGE(E21:R21) -> 9.03625 | U21: 13
A23: Lida Hulgaard - Øjvind Hulgaard | E23: 8.76 | F23: 5.75 | G23: 9.24 | H23: 5.66 | I23: 12.87 | J23: 11.09 | K23: 4.18 | L23: 8.51 | T23: =AVERAGE(E23:R23) -> 8.2575 | U23: 15
A24: Jesper Bechsgaard - Anders Handberg Sørensen | E24: 5.22 | F24: 14.21 | G24: 13.92 | H24: 12.97 | I24: 14.37 | J24: 13.6 | K24: 8.39 | L24: 10.61 | T24: =AVERAGE(E24:R24) -> 11.66125 | U24: 2
A26: Jørgen Cilleborg Hansen - Steen Schou | E26: 13.97 | F26: 11.68 | G26: 7.39 | H26: 4.66 | I26: 10.22 | J26: 13.58 | K26: 15.82 | L26: 8.39 | T26: =AVERAGE(E26:R26) -> 10.71375 | U26: 4
A27: H K Sørensen - Niels Henriksen | E27: 12.34 | F27: 11.01 | G27: 3.7 | H27: 5.72 | I27: 1.93 | J27: 9.91 | K27: 11.61 | L27: 11.49 | T27: =AVERAGE(E27:R27) -> 8.46375 | U27: 13

Sheet Hold i alt
A1: Klub 32 - Hold 2023/24
B5: RR1 | C5: RR2 | D5: Total | E5: Placering
A6: Peter Jepsen | B6: 88.82 | C6: 53.73 | D6: =SUM(B6:C6) -> 142.55 | E6: 1
A7: Henrik Caspersen | B7: 87.55 | C7: 38.03 | D7: =SUM(B7:C7) -> 125.58 | E7: 2
A8: Camilla Bo Krefeld | B8: 83.8 | C8: 40.92 | D8: =SUM(B8:C8) -> 124.72 | E8: 3
A9: Lars Peter Damgaard | B9: 78.6 | C9: 43.39 | D9: =SUM(B9:C9) -> 121.99 | E9: 4
A10: Marlene Henneberg | B10: 86.39 | C10: 35.29 | D10: =SUM(B10:C10) -> 121.68 | E10: 5
A11: Hans Kristian Sørensen | B11: 71.57 | C11: 39.53 | D11: =SUM(B11:C11) -> 111.1 | E11: 6
A12: Lida Hulgaard | B12: 36.13 | C12: 39.71 | D12: =SUM(B12:C12) -> 75.84 | E12: 7
A13: Benny Marquart | B13: 27.14 | C13: 29.4 | D13: =SUM(B13:C13) -> 56.54 | E13: 8

Sheet Slutspil
A1: SLUTSPIL
E4: 1 | F4: 2 | G4: 3 | H4: 4 | I4: 5 | J4: 6 | K4: 7 | L4: 8 | N4: Total | O4: Placering
N6: =AVERAGE(E6:L6) -> 
N7: =AVERAGE(E7:L7) -> 
N9: =AVERAGE(E9:L9) -> 
N12: =AVERAGE(E12:L12) -> 
N15: =AVERAGE(E15:L15) -> 
N18: =AVERAGE(E18:L18) -> 
N21: =AVERAGE(E21:L21) -> 
N24: =AVERAGE(E24:L24) -> 
N27: =AVERAGE(E27:L27) -> 

Sheet Par
A1: Par
B3: 1.aften | C3: 2.aften | D3: 3.aften | E3: 4.aften | G3: Sum | I3: Placering
G5: =SUM(B5:F5) -> 0 | I5: 1
G6: 0 | I6: 2
G7: 0 | I7: 3
G8: 0 | I8: 4
G9: 0 | I9: 5
G10: 0 | I10: 6
G11: 0 | I11: 7
G12: 0 | I12: 8
G13: 0 | I13: 9
G14: 0 | I14: 10
G15: 0 | I15: 11
G16: 0 | I16: 12
G17: 0 | I17: 13
G18: 0 | I18: 14
G19: 0 | I19: 15
G20: 0 | I20: 16
B22: =SUM(B5:B21) -> 0 | C22: =SUM(C5:C21) -> 0 | D22: =SUM(D5:D21) -> 0 | E22: 0 | G22: 0

Sheet Grand prix
A1: Grand prix klub 32 (2023-2024)
F3: Intro hold | G3: RR 1 | H3: IMP1 | I3: RR2 | J3: Slutspil | K3: Par | M3: Total | O3: Placering
A5: Henrik Caspersen - Niels Krøjgaard | F5: =Intro!X5*4 -> 4 | G5: ='RR1'!U20*7 -> 7 | H5: ='Imp Par'!I7*5 -> 15 | I5: ='RR2'!U20*7 -> 49 | M5: =SUM(F5:L5) -> 75 | O5: 1
A6: Emil Jepsen - Peter Jepsen | F6: =Intro!X18*4 -> 28 | G6: ='RR1'!U12*7 -> 49 | H6: ='Imp Par'!I10*5 -> 30 | I6: ='RR2'!U12*7 -> 7 | M6: =SUM(F6:L6) -> 114 | O6: 2
A7: Camilla Bo Krefeld - Johan Hammelev | F7: =Intro!X23*4 -> 16 | G7: ='RR1'!U6*7 -> 28 | H7: ='Imp Par'!I12*5 -> 40 | I7: ='RR2'!U6*7 -> 42 | M7: =SUM(F7:L7) -> 126 | O7: 3
A8: Ricardo Mirasola - Jan Kølbæk | F8: =Intro!X9*4 -> 20 | G8: ='RR1'!U14*7 -> 35 | H8: ='Imp Par'!I13*5 -> 45 | I8: ='RR2'!U14*7 -> 63 | M8: =SUM(F8:L8) -> 163 | O8: 4
A9: Jesper Bechsgaard - Anders Handberg Sørensen | F9: =Intro!X26*4 -> 40 | G9: ='RR1'!U24*7 -> 105 | H9: ='Imp Par'!I5*5 -> 5 | I9: ='RR2'!U24*7 -> 14 | M9: =SUM(F9:L9) -> 164 | O9: 5
A10: Asger Bruhn - Benny Marquart | F10: =Intro!X12*4 -> 36 | G10: ='RR1'!U8*7 -> 91 | H10: ='Imp Par'!I6*5 -> 10 | I10: ='RR2'!U8*7 -> 35 | M10: =SUM(F10:L10) -> 172 | O10: 6
A11: Jørgen Cilleborg Hansen - Steen Schou | F11: =Intro!X11*4 -> 48 | G11: ='RR1'!U26*7 -> 63 | H11: ='Imp Par'!I11*5 -> 35 | I11: ='RR2'!U26*7 -> 28 | M11: =SUM(F11:L11) -> 174 | O11: 7
A12: Jens Kofoed - Emil Buus Thomasn | F12: =Intro!X20*4 -> 52 | G12: ='RR1'!U21*7 -> 14 | H12: ='Imp Par'!I9*5 -> 25 | I12: ='RR2'!U21*7 -> 91 | M12: =SUM(F12:L12) -> 182 | O12: 8
A13: Jan Pedersen - Nils Mønsted | F13: =Intro!X27*4 -> 12 | G13: ='RR1'!U5*7 -> 70 | H13: ='Imp Par'!I14*5 -> 50 | I13: ='RR2'!U5*7 -> 56 | M13: =SUM(F13:L13) -> 188 | O13: 9
A14: Marlene Henneberg - J.O Henneberg | F14: =Intro!X14*4 -> 44 | G14: ='RR1'!U15*7 -> 56 | H14: ='Imp Par'!I8*5 -> 20 | I14: ='RR2'!U15*7 -> 77 | M14: =SUM(F14:L14) -> 197 | O14: 10
A15: Nikolaj Krefeld Hammelev - Lars Peter Damgaard | F15: =Intro!X15*4 -> 24 | G15: ='RR1'!U17*7 -> 42 | H15: ='Imp Par'!I18*5 -> 70 | I15: ='RR2'!U17*7 -> 70 | M15: =SUM(F15:L15) -> 206 | O15: 11
A16: Morten Bilde - Søren Cilleborg Bilde | F16: =Intro!X8*4 -> 32 | G16: ='RR1'!U11*7 -> 21 | H16: ='Imp Par'!I19*5 -> 75 | I16: ='RR2'!U11*7 -> 84 | M16: =SUM(F16:L16) -> 212 | O16: 12
A17: Kresten Roland Johansen - Troels Buus Thomsen | F17: =Intro!X21*4 -> 56 | G17: ='RR1'!U18*7 -> 77 | H17: ='Imp Par'!I16*5 -> 60 | I17: ='RR2'!U18*7 -> 21 | M17: =SUM(F17:L17) -> 214 | O17: 13
A18: H K Sørensen - Niels Henriksen | F18: =Intro!X6*4 -> 8 | G18: ='RR1'!U27*7 -> 84 | H18: ='Imp Par'!I15*5 -> 55 | I18: ='RR2'!U27*7 -> 91 | M18: =SUM(F18:L18) -> 238 | O18: 14
A19: Lida Hulgaard - Øjvind Hulgaard | F19: =Intro!X24*4 -> 60 | G19: ='RR1'!U23*7 -> 98 | H19: ='Imp Par'!I17*5 -> 65 | I19: ='RR2'!U23*7 -> 105 | M19: =SUM(F19:L19) -> 328 | O19: 15
A20: Martin Klausen - Palle Jensen | F20: =Intro!X17*4 -> 64 | G20: ='RR1'!U9*7 -> 112 | H20: ='Imp Par'!I20*5 -> 80 | I20: ='RR2'!U9*7 -> 112 | M20: =SUM(F20:L20) -> 368 | O20: 16
